fUST/lending_fUST_20240818
["ID","MTS","AMOUNT","RATE_DAILY","PERIOD"]
[335197949,1723972258834,-151.0,0.00017813,2]
[335197950,1723972258844,-247.22239,0.00017813,2]
[335197951,1723972258856,-500.0,0.00017813,2]
[335197952,1723972258866,-597.91999046,0.00017813,2]
[335197953,1723972258876,-500.0,0.00017813,2]
[335197954,1723972258886,-500.0,0.00017813,2]
[335197955,1723972258896,-500.0,0.00017813,2]
[335197956,1723972258905,-500.0,0.00017813,2]
[335197957,1723972258915,-803.49,0.00017813,2]
[335197958,1723972258924,-500.0,0.00017813,2]
[335197959,1723972258933,-500.0,0.00017813,2]
[335197960,1723972258942,-500.0,0.00017813,2]
[335197961,1723972258952,-500.0,0.00017813,2]
[335197962,1723972258964,-520.35,0.00017813,2]
[335197963,1723972258977,-500.0,0.00017813,2]
[335197964,1723972258987,-511.96,0.00017813,2]
[335197965,1723972258997,-500.0,0.00017813,2]
[335197966,1723972259008,-500.0,0.00017813,2]
[335197967,1723972259019,-500.0,0.00017813,2]
[335197968,1723972259030,-500.0,0.00017813,2]
[335197969,1723972259041,-500.0,0.00017813,2]
[335197970,1723972259052,-878.09,0.00017813,2]
[335197971,1723972259062,-932.43,0.00017813,2]
[335197972,1723972259073,-500.0,0.00017813,2]
[335197973,1723972259084,-500.0,0.00017813,2]
[335197974,1723972259094,-500.0,0.00017813,2]
[335197975,1723972259105,-657.28,0.00017813,2]
[335197976,1723972259116,-513.41,0.00017813,2]
[335197977,1723972259126,-500.0,0.00017813,2]
[335197978,1723972259138,-603.53,0.00017813,2]
[335197979,1723972259153,-500.0,0.00017813,2]
[335197980,1723972259163,-500.0,0.00017813,2]
[335197981,1723972259172,-500.0,0.00017813,2]
[335197982,1723972259183,-500.0,0.00017813,2]
[335197983,1723972259194,-500.0,0.00017813,2]
[335197984,1723972259204,-500.0,0.00017813,2]
[335197985,1723972259213,-500.0,0.00017813,2]
[335197986,1723972259224,-500.0,0.00017813,2]
[335197987,1723972259234,-500.0,0.00017813,2]
[335197988,1723972259243,-500.0,0.00017813,2]
[335197989,1723972259255,-500.0,0.00017813,2]
[335197990,1723972259266,-500.0,0.00017813,2]
[335197991,1723972259278,-500.0,0.00017813,2]
[335197992,1723972259289,-501.02611279,0.00017813,2]
[335197993,1723972259300,-500.0,0.00017813,2]
[335197994,1723972259310,-500.0,0.00017813,2]
[335197995,1723972259319,-2005.0,0.00017813,10]
[335197996,1723972259329,-500.0,0.00017813,2]
[335197997,1723972259339,-500.0,0.00017813,2]
[335197998,1723972259348,-500.0,0.00017813,2]
[335197999,1723972259357,-500.0,0.00017813,2]
[335198000,1723972259368,-890.33,0.00017813,2]
[335198001,1723972259379,-500.0,0.00017813,2]
[335198002,1723972259389,-543.71684572,0.00017813,2]
[335198003,1723972259399,-500.0,0.00017813,2]
[335198004,1723972259408,-531.34,0.00017813,2]
[335198005,1723972259418,-851.14,0.00017813,2]
[335198006,1723972259428,-812.9,0.00017813,2]
[335198007,1723972259438,-500.0,0.00017813,2]
[335198008,1723972259447,-500.0,0.00017813,2]
[335198009,1723972259458,-500.0,0.00017813,2]
[335198010,1723972259467,-500.0,0.00017813,2]
[335198011,1723972259477,-500.0,0.00017813,2]
[335198012,1723972259486,-500.0,0.00017813,2]
[335198013,1723972259495,-611.95,0.00017813,2]
[335198014,1723972259505,-604.79,0.00017813,2]
[335198015,1723972259516,-500.0,0.00017813,2]
[335198016,1723972259525,-846.62,0.00017813,2]
[335198017,1723972259534,-500.0,0.00017813,2]
[335198018,1723972259543,-833.19,0.00017813,2]
[335198019,1723972259553,-500.0,0.00017813,2]
[335198020,1723972259563,-886.48,0.00017813,2]
[335198021,1723972259574,-500.0,0.00017813,2]
[335198022,1723972259584,-500.0,0.00017813,2]
[335198023,1723972259596,-500.0,0.00017813,2]
[335198024,1723972259608,-1651.01,0.00017813,2]
[335198025,1723972259620,-500.0,0.00017813,2]
[335198026,1723972259631,-500.0,0.00017813,2]
[335198027,1723972259640,-500.0,0.00017813,2]
[335198028,1723972259651,-500.0,0.00017813,2]
[335198029,1723972259663,-500.0,0.00017813,2]
[335198030,1723972259675,-500.0,0.00017813,2]
[335198031,1723972259686,-500.0,0.00017813,2]
[335198032,1723972259697,-569.59,0.00017813,2]
[335198033,1723972259707,-681.53,0.00017813,2]
[335198034,1723972259719,-500.0,0.00017813,2]
[335198035,1723972259729,-500.0,0.00017813,2]
[335198036,1723972259740,-1340.45,0.00017813,2]
[335198037,1723972259750,-1122.98,0.00017813,2]
[335198038,1723972259761,-500.0,0.00017813,2]
[335198039,1723972259772,-500.0,0.00017813,2]
[335198040,1723972259782,-560.05,0.00017813,2]
[335198041,1723972259792,-500.0,0.00017813,2]
[335198042,1723972259803,-151.0,0.00017813,2]
[335198043,1723972259815,-151.0,0.00017813,2]
[335198044,1723972259826,-283.61733,0.00017813,2]
[335198045,1723972259835,-283.61733,0.00017813,2]
[335198046,1723972259845,-500.0,0.00017861,2]
[335198047,1723972259856,-500.0,0.00017871,2]
[335198048,1723972259866,-200.0,0.00017873,2]
[335198049,1723972259877,-200.25408142,0.00017873,2]
[335198050,1723972259887,-500.0,0.00017895,2]
[335198051,1723972259896,-500.0,0.00017895,2]
[335198052,1723972259906,-500.0,0.00017895,2]
[335198053,1723972259915,-577.2536743,0.00017895,2]
[335198054,1723972259925,-275.21596254,0.00017895,2]
[335198055,1723972259937,-500.0,0.00017895,2]
[335198056,1723972259946,-513.21640273,0.00017895,2]
[335198057,1723972259955,-500.0,0.00017895,2]
[335198058,1723972259965,-1111.31,0.00017895,2]
[335198059,1723972259976,-627.69,0.00017895,2]
[335198060,1723972259987,-500.0,0.00017895,2]
[335198061,1723972259998,-500.0,0.00017895,2]
[335198062,1723972260009,-500.0,0.00017895,2]
[335198063,1723972260020,-500.0,0.00017895,2]
[335198064,1723972260031,-500.0,0.00017895,2]
[335198065,1723972260040,-500.0,0.00017895,2]
[335198066,1723972260050,-500.0,0.00017895,2]
[335198067,1723972260061,-565.79158337,0.00017895,2]
[335198068,1723972260072,-550.63,0.00017895,2]
[335198069,1723972260082,-500.0,0.00017895,2]
[335198070,1723972260093,-500.0,0.00017895,2]
[335198071,1723972260103,-500.0,0.00017895,2]
[335198072,1723972260112,-500.0,0.00017895,2]
[335198073,1723972260124,-259.55124487,0.00017895,2]
[335198074,1723972260135,-571.18,0.00017895,2]
[335198075,1723972260146,-200.0,0.00017895,2]
[335198076,1723972260156,-1361.83,0.00017895,2]
[335198077,1723972260166,-607.67760922,0.00017895,2]
[335198078,1723972260175,-657.62,0.00017895,2]
[335198079,1723972260185,-500.0,0.00017895,2]
[335198080,1723972260194,-709.41,0.00017895,2]
[335198081,1723972260204,-500.0,0.00017895,2]
[335198082,1723972260215,-500.0,0.00017895,2]
[335198083,1723972260224,-690.3,0.00017895,2]
[335198084,1723972260234,-500.0,0.00017895,2]
[335198085,1723972260243,-779.41,0.00017895,2]
[335198086,1723972260253,-781.51,0.00017895,2]
[335198087,1723972260262,-570.91,0.00017895,2]
[335198088,1723972260271,-1114.52,0.00017895,2]
[335198089,1723972260281,-500.0,0.00017895,2]
[335198090,1723972260290,-632.83200524,0.00017895,2]
[335198091,1723972260300,-500.0,0.00017895,2]
[335198092,1723972260310,-500.0,0.00017895,2]
[335198093,1723972260320,-576.34,0.00017895,2]
[335198094,1723972260329,-746.6,0.00017895,2]
[335198095,1723972260340,-500.0,0.00017895,2]
[335198096,1723972260352,-545.45,0.00017895,2]
[335198097,1723972260362,-571.46,0.00017895,2]
[335198098,1723972260372,-500.0,0.00017895,2]
[335198099,1723972260383,-500.0,0.00017895,2]
[335198100,1723972260394,-534.36,0.00017895,2]
[335198101,1723972260404,-828.94,0.00017895,2]
[335198102,1723972260413,-500.0,0.00017895,2]
[335198103,1723972260424,-500.0,0.00017895,2]
[335198104,1723972260437,-500.0,0.00017895,2]
[335198105,1723972260447,-500.0,0.00017895,2]
[335198106,1723972260458,-500.74765746,0.00017895,2]
[335198107,1723972260470,-500.0,0.00017895,2]
[335198108,1723972260481,-500.0,0.00017895,2]
[335198109,1723972260491,-511.13830714,0.00017895,2]
[335198110,1723972260502,-500.0,0.00017895,2]
[335198111,1723972260514,-745.97,0.00017895,2]
[335198112,1723972260525,-500.0,0.00017895,2]
[335198113,1723972260536,-500.0,0.00017895,2]
[335198114,1723972260548,-502.15532841,0.00017895,2]
[335198115,1723972260559,-500.0,0.00017895,2]
[335198116,1723972260569,-502.76543295,0.00017895,2]
[335198117,1723972260581,-493.19873065,0.00017895,2]
[335198118,1723972260594,-552.04,0.00017895,2]
[335198119,1723972260606,-500.0,0.00017895,2]
[335198120,1723972260617,-500.0,0.00017895,2]
[335198121,1723972260628,-500.0,0.00017895,2]
[335198122,1723972260639,-500.0,0.00017895,2]
[335198123,1723972260650,-500.0,0.00017895,2]
[335198124,1723972260661,-500.0,0.00017895,2]
[335198125,1723972260671,-596.88,0.00017895,2]
[335198126,1723972260682,-500.0,0.00017895,2]
[335198127,1723972260692,-500.0,0.00017895,2]
[335198128,1723972260703,-500.0,0.00017895,2]
[335198129,1723972260714,-500.0,0.00017895,2]
[335198130,1723972260725,-500.0,0.00017895,2]
[335198131,1723972260735,-666.21,0.00017895,2]
[335198132,1723972260745,-908.55,0.00017895,2]
[335198133,1723972260755,-1000.0,0.00017895,2]
[335198134,1723972260765,-500.0,0.00017895,2]
[335198135,1723972260774,-500.0,0.00017895,2]
[335198136,1723972260786,-500.0,0.00017895,2]
[335198137,1723972260797,-504.03256699,0.00017895,2]
[335198138,1723972260809,-516.15,0.00017895,2]
[335198139,1723972260819,-505.1839245,0.00017895,2]
[335198140,1723972260832,-500.0,0.00017895,2]
[335198141,1723972260842,-809.29,0.00017895,2]
[335198142,1723972260853,-979.6,0.00017895,2]
[335198143,1723972260864,-500.0,0.00017895,2]
[335198144,1723972260874,-500.0,0.00017895,2]
[335198145,1723972260885,-179.68681379,0.00017895,2]
[335198146,1723972260895,-500.0,0.00017895,2]
[335198147,1723972260905,-543.15,0.00017895,2]
[335198148,1723972261020,-500.0,0.00017895,2]
[335198149,1723972261030,-500.0,0.00017895,2]
[335198150,1723972261039,-500.0,0.00017895,2]
[335198151,1723972261048,-500.0,0.00017895,2]
[335198152,1723972261057,-500.0,0.00017895,2]
[335198153,1723972261066,-711.8,0.00017895,2]
[335198154,1723972261076,-505.18868285,0.00017895,2]
[335198155,1723972261087,-500.0,0.00017895,2]
[335198156,1723972261096,-500.0,0.00017895,2]
[335198157,1723972261105,-500.0,0.00017895,2]
[335198158,1723972261114,-151.0,0.00017895,2]
[335198159,1723972261123,-498.20948274,0.00017895,2]
[335198160,1723972261132,-151.0,0.00017895,2]
[335198161,1723972261142,-514.47,0.00017895,2]
[335198162,1723972261155,-500.0,0.00017895,2]
[335198163,1723972261165,-500.0,0.00017895,2]
[335198164,1723972261175,-500.0,0.00017895,2]
[335198165,1723972261184,-712.42,0.00017895,2]
[335198166,1723972261195,-500.0,0.00017895,2]
[335198167,1723972261205,-500.0,0.00017895,2]
[335198168,1723972261217,-504.60094389,0.00017895,2]
[335198169,1723972261228,-500.0,0.00017895,2]
[335198170,1723972261239,-1455.28,0.00017895,2]
[335198171,1723972261250,-500.0,0.00017895,2]
[335198172,1723972261262,-500.0,0.00017895,2]
[335198173,1723972261272,-500.0,0.00017895,2]
[335198174,1723972261285,-825.96,0.00017895,2]
[335198175,1723972261295,-517.2,0.00017895,2]
[335198176,1723972261305,-644.77,0.00017895,2]
[335198177,1723972261316,-500.0,0.00017895,2]
[335198178,1723972261328,-500.0,0.00017895,2]
[335198179,1723972261337,-3340.71,0.00017895,2]
[335198180,1723972261348,-500.0,0.00017895,2]
[335198181,1723972261359,-683.24,0.00017895,2]
[335198182,1723972261369,-500.0,0.00017895,2]
[335198183,1723972261380,-500.0,0.00017895,2]
[335198184,1723972261391,-702.81,0.00017895,2]
[335198185,1723972261400,-957.5,0.00017895,2]
[335198186,1723972261409,-505.89984748,0.00017895,2]
[335198187,1723972261419,-500.0,0.00017895,2]
[335198188,1723972261430,-2320.16,0.00017895,2]
[335198189,1723972261441,-464.00191856,0.00017895,2]
[335198190,1723972261453,-1234.36,0.00017895,2]
[335198191,1723972261464,-500.0,0.00017895,2]
[335198192,1723972261474,-500.0,0.00017895,2]
[335198193,1723972261484,-1016.9,0.00017895,2]
[335198194,1723972261494,-500.0,0.00017895,2]
[335198195,1723972261503,-500.0,0.00017895,2]
[335198196,1723972261512,-283.61733,0.00017895,2]
[335198197,1723972261522,-500.0,0.00017895,2]
[335198198,1723972261531,-500.0,0.00017895,2]
[335198199,1723972261540,-502.55370451,0.00017895,2]
[335198200,1723972261550,-500.0,0.00017895,2]
[335198201,1723972261559,-283.61733,0.00017895,2]
[335198202,1723972261569,-500.0,0.00017895,2]
[335198203,1723972261579,-679.1,0.00017895,2]
[335198204,1723972261589,-500.0,0.00017895,2]
[335198205,1723972261599,-730.8,0.00017895,2]
[335198206,1723972261609,-950.77,0.00017895,2]
[335198207,1723972261621,-500.0,0.00017895,2]
[335198208,1723972261632,-500.0,0.00017895,2]
[335198209,1723972261643,-500.0,0.00017895,2]
[335198210,1723972261652,-651.53,0.00017895,2]
[335198211,1723972261666,-500.0,0.00017895,2]
[335198212,1723972261676,-1053.09,0.00017895,2]
[335198213,1723972261685,-500.0,0.00017895,2]
[335198214,1723972261700,-500.0,0.00017895,2]
[335198215,1723972261709,-519.06,0.00017895,2]
[335198216,1723972261718,-500.0,0.00017895,2]
[335198217,1723972261728,-500.0,0.00017895,2]
[335198218,1723972261737,-500.0,0.00017895,2]
[335198219,1723972261746,-1056.73,0.00017895,2]
[335198220,1723972261756,-500.0,0.00017895,2]
[335198221,1723972261765,-693.92,0.00017895,2]
[335198222,1723972261774,-500.0,0.00017895,2]
[335198223,1723972261785,-523.30241497,0.00017895,2]
[335198224,1723972261796,-500.0,0.00017895,2]
[335198225,1723972261805,-502.13860294,0.00017895,2]
[335198226,1723972261815,-2211.05,0.00017895,2]
[335198227,1723972261825,-500.0,0.00017895,2]
[335198228,1723972261835,-508.91305967,0.00017895,2]
[335198229,1723972261845,-907.0,0.00017895,2]
[335198230,1723972261855,-500.0,0.00017895,2]
[335198231,1723972261865,-500.0,0.00017895,2]
[335198232,1723972261875,-500.0,0.00017895,2]
[335198233,1723972261884,-726.36,0.00017895,2]
[335198234,1723972261894,-505.7191295,0.00017895,2]
[335198235,1723972261904,-502.55481325,0.00017895,2]
[335198236,1723972261914,-500.0,0.00017895,2]
[335198237,1723972261923,-780.01,0.00017895,2]
[335198238,1723972261933,-785.81,0.00017895,2]
[335198239,1723972261943,-1109.69,0.00017895,2]
[335198240,1723972261953,-484.09248232,0.00017895,2]
[335198241,1723972261962,-500.0,0.00017895,2]
[335198242,1723972261972,-506.49765776,0.00017895,2]
[335198243,1723972261982,-500.0,0.00017895,2]
[335198244,1723972261994,-500.0,0.00017895,2]
[335198245,1723972262005,-10341.66689399,0.00017898,2]
[335198246,1723972262017,-415.0,0.00017963,2]
[335198247,1723972262026,-153.0,0.00018,2]
[335198248,1723972262035,-153.0,0.00018,2]
[335198249,1723972262044,-153.0,0.00018,2]
[335198250,1723972262053,-153.0,0.00018,2]
[335198251,1723972262063,-153.0,0.00018,2]
[335198252,1723972262073,-153.0,0.00018,2]
[335198253,1723972262083,-153.0,0.00018,2]
[335198254,1723972262092,-153.0,0.00018,2]
[335198255,1723972262101,-153.0,0.00018,2]
[335198256,1723972262110,-304.5556459,0.00018,2]
[335198257,1723972262120,-500.0,0.00018057,2]
[335198258,1723972262129,-500.0,0.00018057,2]
[335198259,1723972262138,-561.37,0.00018081,2]
[335198260,1723972262147,-505.55,0.00018081,2]
[335198261,1723972262157,-2416.37,0.00018081,2]
[335198262,1723972262166,-762.7,0.00018081,2]
[335198263,1723972262176,-756.06,0.00018081,2]
[335198264,1723972262186,-420.0,0.00018081,2]
[335198265,1723972262196,-803.37,0.00018081,2]
[335198266,1723972262206,-815.41,0.00018081,2]
[335198267,1723972262216,-500.0,0.00018081,2]
[335198268,1723972262227,-500.0,0.00018082,2]
[335198269,1723972262236,-500.0,0.00018082,2]
[335198270,1723972262247,-1177.92,0.00018082,2]
[335198271,1723972262257,-500.0,0.00018082,2]
[335198272,1723972262268,-1232.66,0.00018082,2]
[335198273,1723972262278,-1382.39,0.00018082,2]
[335198274,1723972262288,-500.0,0.00018082,2]
[335198275,1723972262298,-1150.83,0.00018082,2]
[335198276,1723972262310,-759.23,0.00018082,2]
[335198277,1723972262320,-4733.68,0.00018082,2]
[335198278,1723972262330,-1343.44,0.00018082,2]
[335198279,1723972262340,-557.79,0.00018082,2]
[335198280,1723972262353,-1110.9,0.00018082,2]
[335198281,1723972262363,-500.0,0.00018082,2]
[335198282,1723972262373,-500.0,0.00018082,2]
[335198283,1723972262383,-500.0,0.00018082,2]
[335198284,1723972262395,-1346.94,0.00018082,2]
[335198285,1723972262405,-1824.26,0.00018082,2]
[335198286,1723972262416,-576.65,0.00018082,2]
[335198287,1723972262427,-500.0,0.00018082,2]
[335198288,1723972262438,-550.17,0.00018082,2]
[335198289,1723972262448,-500.0,0.00018082,2]
[335198290,1723972262458,-1066.33,0.00018082,2]
[335198291,1723972262468,-500.0,0.00018082,2]
[335198292,1723972262479,-6489.01,0.00018082,2]
[335198293,1723972262489,-976.12,0.00018082,2]
[335198294,1723972262501,-877.17,0.00018082,2]
[335198295,1723972262512,-500.0,0.00018082,2]
[335198296,1723972262522,-644.58,0.00018082,2]
[335198297,1723972262534,-500.0,0.00018082,2]
[335198298,1723972262545,-1110.33,0.00018082,2]
[335198299,1723972262555,-500.0,0.00018082,2]
[335198300,1723972262567,-228.99645626,0.00018082,2]
[335198301,1723972262579,-907.09,0.00018082,2]
[335198302,1723972262590,-500.0,0.00018082,2]
[335198303,1723972262599,-724.89,0.00018082,2]
[335198304,1723972262610,-713.9,0.00018082,2]
[335198305,1723972262619,-500.0,0.00018082,2]
[335198306,1723972262628,-500.0,0.00018082,2]
[335198307,1723972262638,-716.69,0.00018082,2]
[335198308,1723972262647,-500.0,0.00018082,2]
[335198309,1723972262657,-1868.57,0.00018082,2]
[335198310,1723972262666,-500.0,0.00018082,2]
[335198311,1723972262676,-692.16,0.00018082,2]
[335198312,1723972262685,-820.93,0.00018082,2]
[335198313,1723972262695,-1308.34,0.00018082,2]
[335198314,1723972262705,-500.0,0.00018082,2]
[335198315,1723972262714,-151.0,0.00018085,2]
[335198316,1723972262724,-500.0,0.00018087,2]
[335198317,1723972262733,-500.0,0.00018087,2]
[335198318,1723972262743,-500.0,0.00018087,2]
[335198319,1723972262752,-500.0,0.00018087,2]
[335198320,1723972262761,-500.0,0.00018087,2]
[335198321,1723972262770,-500.0,0.00018087,2]
[335198322,1723972262780,-515.16952851,0.00018087,2]
[335198323,1723972262789,-500.0,0.00018087,2]
[335198324,1723972262798,-500.0,0.00018087,2]
[335198325,1723972262807,-459.05097986,0.00018087,2]
[335198326,1723972262817,-508.46325426,0.00018087,2]
[335198327,1723972262826,-500.0,0.00018087,2]
[335198328,1723972262835,-288.78386885,0.00018087,2]
[335198333,1723972299114,166.4,5.479e-05,2]
[335198337,1723972356060,537.32633188,0.00015,2]
[335198338,1723972367874,159.875462,0.00014247,2]
[335198339,1723972568838,162.204175,0.00014989,2]
[335198340,1723972596706,166.4,5.479e-05,2]
[335198341,1723972707880,210.2963963,0.00014961,2]
[335198342,1723972739241,350.0,0.000202,120]
[335198344,1723972875985,179.637006,0.00014247,2]
[335198345,1723972894991,166.4,5.479e-05,2]
[335198347,1723972935530,776.4315317,0.00014377,2]
[335198348,1723972995501,24900.0,0.00014358,2]
[335198351,1723973016786,253.27629167,0.00015001,2]
[335198353,1723973090086,192.77052201,0.00015001,2]
[335198355,1723973105878,1000.0,0.00015001,2]
[335198357,1723973115465,154.81199237,0.00014519,2]
[335198358,1723973115711,195.760737,0.00014689,2]
[335198359,1723973116097,195.760737,0.00014726,2]
[335198360,1723973116158,195.760737,0.00014763,2]
[335198365,1723973173482,2382.4901447,0.00014587,2]
[335198367,1723973183772,158.207687,0.00014587,2]
[335198368,1723973195382,166.4,5.479e-05,2]
[335198369,1723973216152,-164.847317,0.00015074,2]
[335198370,1723973216175,-15.8952098,0.00015078,2]
[335198371,1723973230107,-484.1047902,0.00015078,2]
[335198372,1723973230129,-448.37741672,0.00015078,2]
[335198373,1723973242140,-51.62258328,0.00015078,2]
[335198374,1723973242161,-486.31595418,0.00015078,2]
[335198375,1723973242184,-81.08051183,0.00015115,2]
[335198376,1723973246100,-83.76680517,0.00015115,2]
[335198377,1723973246124,-164.847317,0.00015156,2]
[335198378,1723973246149,-164.847317,0.00015198,2]
[335198379,1723973246173,-164.847317,0.00015239,2]
[335198380,1723973246198,-164.847317,0.0001528,2]
[335198381,1723973246224,-164.847317,0.00015322,2]
[335198382,1723973246247,-300.0,0.00015362,2]
[335198383,1723973246271,-300.0,0.00015362,2]
[335198384,1723973246295,-360.84370819,0.00015363,2]
[335198385,1723973254114,-2222.77705499,0.00015363,2]
[335198386,1723973261062,250.0,0.00014911,2]
[335198387,1723973261347,250.0,0.00014952,2]
[335198388,1723973261560,250.0,0.00014993,2]
[335198389,1723973279953,227.88054601,0.000145,2]
[335198390,1723973282697,245.0,0.00015001,2]
[335198393,1723973327189,1997.72051704,0.000193,120]
[335198394,1723973330241,398.74543553,0.00015001,2]
[335198395,1723973360142,-250.0,0.00015034,2]
[335198396,1723973360163,-250.0,0.00015075,2]
[335198397,1723973360183,-8731.72043343,0.00015078,2]
[335198398,1723973360203,-250.0,0.00015116,2]
[335198399,1723973360224,-300.0,0.00015156,2]
[335198400,1723973360245,-250.0,0.00015157,2]
[335198401,1723973360266,-250.0,0.00015198,2]
[335198402,1723973360286,-250.0,0.00015238,2]
[335198403,1723973360308,-250.0,0.00015279,2]
[335198404,1723973360331,-250.0,0.0001532,2]
[335198405,1723973360355,-250.0,0.00015361,2]
[335198406,1723973360377,-250.0,0.00015402,2]
[335198407,1723973360401,-250.0,0.00015443,2]
[335198408,1723973360425,-250.0,0.00015484,2]
[335198409,1723973360447,-500.0,0.00015506,2]
[335198410,1723973360470,-250.0,0.00015525,2]
[335198411,1723973360491,-250.0,0.00015566,2]
[335198412,1723973360514,-250.0,0.00015607,2]
[335198413,1723973360536,-250.0,0.00015647,2]
[335198414,1723973360560,-206.54934774,0.00015688,2]
[335198415,1723973366122,-43.45065226,0.00015688,2]
[335198416,1723973366147,-1000.0,0.00016,16]
[335198436,1723973432721,-500.0,0.00016322,2]
[335198438,1723973432731,-214.73489578,0.00016426,2]
[335198479,1723973438665,-85.26510422,0.00016426,2]
[335198480,1723973438677,-518.04671474,0.00016427,2]
[335198481,1723973438690,-500.0,0.00016427,2]
[335198482,1723973438702,-500.0,0.00016427,2]
[335198483,1723973438715,-500.0,0.00016427,2]
[335198484,1723973438727,-500.0,0.00016427,2]
[335198485,1723973438739,-500.0,0.00016427,2]
[335198486,1723973438751,-500.0,0.00016427,2]
[335198487,1723973438763,-500.0,0.00016427,2]
[335198488,1723973438775,-315.09260661,0.00016427,2]
[335198489,1723973438787,-500.0,0.00016427,2]
[335198490,1723973438800,-500.0,0.00016427,2]
[335198491,1723973438812,-500.0,0.00016427,2]
[335198492,1723973438825,-500.0,0.00016427,2]
[335198493,1723973438838,-500.0,0.00016427,2]
[335198494,1723973438850,-500.0,0.00016427,2]
[335198495,1723973438864,-500.0,0.00016427,2]
[335198496,1723973438877,-500.0,0.00016427,2]
[335198497,1723973438889,-481.64092165,0.00016427,2]
[335198498,1723973438902,-1685.6379867,0.00016427,2]
[335198499,1723973438914,-184441.195588,0.00016428,2]
[335198500,1723973438926,-500.0,0.00016438,2]
[335198501,1723973438938,-500.0,0.00016438,2]
[335198502,1723973438951,-197.73105939,0.00016438,2]
[335198503,1723973438963,-523.53726131,0.00016438,2]
[335198504,1723973438975,-500.0,0.00016438,2]
[335198505,1723973438987,-556.12,0.00016438,2]
[335198506,1723973439000,-500.0,0.00016438,2]
[335198507,1723973439012,-500.0,0.00016438,2]
[335198508,1723973439024,-500.0,0.00016438,2]
[335198509,1723973439037,-568.14802954,0.00016438,2]
[335198510,1723973439048,-500.0,0.00016438,2]
[335198511,1723973439061,-200.0,0.00016438,2]
[335198512,1723973439073,-500.0,0.00016438,2]
[335198513,1723973439086,-500.0,0.00016438,2]
[335198514,1723973439099,-500.0,0.00016438,2]
[335198515,1723973439111,-500.0,0.00016438,2]
[335198516,1723973439124,-500.0,0.00016438,2]
[335198517,1723973439136,-500.0,0.00016438,2]
[335198518,1723973439147,-500.0,0.00016438,2]
[335198519,1723973439159,-500.0,0.00016438,2]
[335198520,1723973439171,-500.0,0.00016438,2]
[335198521,1723973439184,-505.81,0.00016438,2]
[335198522,1723973439196,-500.0,0.00016438,2]
[335198523,1723973439207,-500.0,0.00016438,2]
[335198524,1723973439220,-510.62,0.00016438,2]
[335198525,1723973439232,-621.64,0.00016438,2]
[335198526,1723973439244,-500.0,0.00016438,2]
[335198527,1723973439256,-500.0,0.00016438,2]
[335198528,1723973439266,-500.0,0.00016438,2]
[335198529,1723973439276,-500.0,0.00016438,2]